[Event "Titled Tuesday Blitz May 30 Late 2023"]
[White "Mujumdar, Sameer"]
[Black "Lopez Mulet, Inigo"]
[WhiteFideId "2029707"]
[BlackFideId "22235620"]
[WhiteElo "2104"]
[BlackElo "2289"]
[Result "1-0"]
[Round "11"]
[TimeControl "180+2"]
[Date "2023.05.31"]
[WhiteClock "0:00:42"]
[BlackClock "0:00:10"]

1. d4 {[%clk 0:03:00]}  Nf6 {[%clk 0:02:59]} 2. Bf4 {[%clk 0:03:00]}  d5 {[%clk 0:02:57]} 3. Nf3 {[%clk 0:02:59]}  c5 {[%clk 0:02:55]} 4. e3 {[%clk 0:03:00]}  Nc6 {[%clk 0:02:55]} 5. c3 {[%clk 0:02:59]}  e6 {[%clk 0:02:55]} 6. Nbd2 {[%clk 0:02:59]}  Bd6 {[%clk 0:02:54]} 7. Bg3 {[%clk 0:02:55]}  Nh5 {[%clk 0:02:54]} 8. Bxd6 {[%clk 0:02:51]}  Qxd6 {[%clk 0:02:54]} 9. Bd3 {[%clk 0:02:51]}  f5 {[%clk 0:02:53]} 10. Ne5 {[%clk 0:02:45]}  Nf6 {[%clk 0:02:53]} 11. f4 {[%clk 0:02:42]}  Bd7 {[%clk 0:02:53]} 12. O-O {[%clk 0:02:39]}  O-O {[%clk 0:02:53]} 13. Kh1 {[%clk 0:02:36]}  Ne4 {[%clk 0:02:51]} 14. Ndf3 {[%clk 0:02:27]}  Nxe5 {[%clk 0:02:47]} 15. Nxe5 {[%clk 0:02:26]}  a6 {[%clk 0:02:43]} 16. Bxe4 {[%clk 0:02:19]}  fxe4 {[%clk 0:02:41]} 17. dxc5 {[%clk 0:02:19]}  Qc7 {[%clk 0:02:40]} 18. Qd4 {[%clk 0:02:15]}  Bb5 {[%clk 0:02:40]} 19. Rf2 {[%clk 0:02:06]}  a5 {[%clk 0:02:40]} 20. b4 {[%clk 0:02:03]}  axb4 {[%clk 0:02:40]} 21. cxb4 {[%clk 0:02:03]}  Ra3 {[%clk 0:02:40]} 22. f5 {[%clk 0:01:56]}  Bc6 {[%clk 0:02:17]} 23. Nxc6 {[%clk 0:01:40]}  bxc6 {[%clk 0:02:10]} 24. Qb2 {[%clk 0:01:30]}  Rxe3 {[%clk 0:02:07]} 25. fxe6 {[%clk 0:01:30]}  Qe7 {[%clk 0:00:23]} 26. Raf1 {[%clk 0:01:12]}  Rxf2 {[%clk 0:00:20]} 27. Qxf2 {[%clk 0:01:10]}  d4 {[%clk 0:00:20]} 28. Qd2 {[%clk 0:01:00]}  Qxe6 {[%clk 0:00:09]} 29. Qxd4 {[%clk 0:01:00]}  Rd3 {[%clk 0:00:10]} 30. Qf2 {[%clk 0:00:55]}  h6 {[%clk 0:00:10]} 31. Qe2 {[%clk 0:00:43]}  e3 {[%clk 0:00:10]} 32. Qxd3 {[%clk 0:00:42]}  e2 {[%clk 0:00:09]} 33. Re1 {[%clk 0:00:42]}  Qf6 {[%clk 0:00:10]} 34. Qxe2 {[%clk 0:00:42]} 1-0


[Site "https://www.chess.com"]

[Event "Titled Tuesday Blitz May 30 Late 2023"]
[White "Gorovets, Andrey"]
[Black "reevecanada"]
[WhiteFideId "13504037"]
[WhiteElo "2459"]
[BlackElo "2519"]
[Result "1-0"]
[Round "11"]
[TimeControl "180+2"]
[Date "2023.05.31"]
[WhiteClock "0:00:19"]
[BlackClock "0:00:43"]

1. Nf3 {[%clk 0:03:00]}  d5 {[%clk 0:02:59]} 2. g3 {[%clk 0:03:00]}  Nf6 {[%clk 0:02:58]} 3. Bg2 {[%clk 0:03:00]}  e6 {[%clk 0:02:58]} 4. O-O {[%clk 0:02:58]}  Bd6 {[%clk 0:02:59]} 5. d4 {[%clk 0:02:55]}  O-O {[%clk 0:02:59]} 6. b3 {[%clk 0:02:55]}  c5 {[%clk 0:02:59]} 7. dxc5 {[%clk 0:02:39]}  Bxc5 {[%clk 0:02:58]} 8. Bb2 {[%clk 0:02:40]}  Nc6 {[%clk 0:02:56]} 9. e3 {[%clk 0:02:33]}  Re8 {[%clk 0:02:53]} 10. c4 {[%clk 0:02:24]}  dxc4 {[%clk 0:02:39]} 11. Qc1 {[%clk 0:02:15]}  Nb4 {[%clk 0:02:11]} 12. Qxc4 {[%clk 0:01:58]}  b6 {[%clk 0:02:09]} 13. Nc3 {[%clk 0:01:19]}  Ba6 {[%clk 0:02:02]} 14. Nb5 {[%clk 0:01:19]}  Rc8 {[%clk 0:01:57]} 15. Rfd1 {[%clk 0:01:18]}  Qe7 {[%clk 0:01:56]} 16. Qe2 {[%clk 0:01:14]}  Red8 {[%clk 0:01:39]} 17. a4 {[%clk 0:01:11]}  h6 {[%clk 0:01:35]} 18. Ne5 {[%clk 0:01:09]}  Nd7 {[%clk 0:01:24]} 19. Nc4 {[%clk 0:01:06]}  Nf6 {[%clk 0:01:18]} 20. Rxd8+ {[%clk 0:00:59]}  Rxd8 {[%clk 0:01:17]} 21. Rd1 {[%clk 0:01:00]}  Rxd1+ {[%clk 0:01:15]} 22. Qxd1 {[%clk 0:01:01]}  Bxb5 {[%clk 0:01:15]} 23. axb5 {[%clk 0:01:00]}  Nfd5 {[%clk 0:01:10]} 24. Qg4 {[%clk 0:00:49]}  f6 {[%clk 0:01:02]} 25. Bh3 {[%clk 0:00:37]}  Nc7 {[%clk 0:00:58]} 26. Qe4 {[%clk 0:00:28]}  f5 {[%clk 0:00:53]} 27. Qb7 {[%clk 0:00:27]}  Nxb5 {[%clk 0:00:51]} 28. Qc8+ {[%clk 0:00:26]}  Kh7 {[%clk 0:00:50]} 29. e4 {[%clk 0:00:20]}  g6 {[%clk 0:00:43]} 30. Qh8# {[%clk 0:00:19]} 1-0


[Site "https://www.chess.com"]

[Event "Titled Tuesday Blitz May 30 Late 2023"]
[White "Bernabeu Lopez, Carlos Javier"]
[Black "Rastbod, Ali"]
[WhiteFideId "2235366"]
[BlackFideId "12567477"]
[WhiteElo "2344"]
[BlackElo "2274"]
[Result "0-1"]
[Round "11"]
[TimeControl "180+2"]
[Date "2023.05.31"]
[WhiteClock "0:02:38"]
[BlackClock "0:02:03"]

1. c4 {[%clk 0:03:00]}  e5 {[%clk 0:02:59]} 2. Nc3 {[%clk 0:03:00]}  Nf6 {[%clk 0:03:00]} 3. Nf3 {[%clk 0:03:00]}  e4 {[%clk 0:02:56]} 4. Ng5 {[%clk 0:03:01]}  c6 {[%clk 0:02:56]} 5. Ngxe4 {[%clk 0:03:01]}  Nxe4 {[%clk 0:02:56]} 6. Nxe4 {[%clk 0:03:02]}  d5 {[%clk 0:02:57]} 7. cxd5 {[%clk 0:03:02]}  cxd5 {[%clk 0:02:58]} 8. Ng3 {[%clk 0:03:03]}  h5 {[%clk 0:02:58]} 9. e3 {[%clk 0:03:04]}  h4 {[%clk 0:02:57]} 10. Ne2 {[%clk 0:03:05]}  Nc6 {[%clk 0:02:57]} 11. d4 {[%clk 0:03:05]}  Bd6 {[%clk 0:02:58]} 12. f3 {[%clk 0:03:04]}  Qf6 {[%clk 0:02:56]} 13. Kf2 {[%clk 0:03:05]}  g5 {[%clk 0:02:52]} 14. h3 {[%clk 0:03:04]}  Be6 {[%clk 0:02:52]} 15. Nc3 {[%clk 0:03:04]}  a6 {[%clk 0:02:49]} 16. Bd3 {[%clk 0:03:04]}  Bg3+ {[%clk 0:02:46]} 17. Kg1 {[%clk 0:03:04]}  Nxd4 {[%clk 0:02:38]} 18. Ne2 {[%clk 0:02:55]}  Nxe2+ {[%clk 0:02:35]} 19. Qxe2 {[%clk 0:02:56]}  O-O {[%clk 0:02:30]} 20. Bd2 {[%clk 0:02:56]}  Qxb2 {[%clk 0:02:30]} 21. Rd1 {[%clk 0:02:54]}  Qxa2 {[%clk 0:02:27]} 22. Be1 {[%clk 0:02:54]}  Qxe2 {[%clk 0:02:26]} 23. Bxe2 {[%clk 0:02:55]}  Be5 {[%clk 0:02:27]} 24. f4 {[%clk 0:02:52]}  gxf4 {[%clk 0:02:27]} 25. exf4 {[%clk 0:02:52]}  Bxf4 {[%clk 0:02:28]} 26. Bxh4 {[%clk 0:02:53]}  Be3+ {[%clk 0:02:28]} 27. Bf2 {[%clk 0:02:53]}  d4 {[%clk 0:02:21]} 28. Bxe3 {[%clk 0:02:50]}  dxe3 {[%clk 0:02:22]} 29. Rd3 {[%clk 0:02:51]}  Bc4 {[%clk 0:02:20]} 30. Rxe3 {[%clk 0:02:51]}  Bxe2 {[%clk 0:02:19]} 31. Rxe2 {[%clk 0:02:52]}  Rfe8 {[%clk 0:02:19]} 32. Ra2 {[%clk 0:02:53]}  b5 {[%clk 0:02:16]} 33. Kh2 {[%clk 0:02:53]}  a5 {[%clk 0:02:15]} 34. Rb1 {[%clk 0:02:52]}  b4 {[%clk 0:02:13]} 35. Rb3 {[%clk 0:02:52]}  Reb8 {[%clk 0:02:13]} 36. Ra4 {[%clk 0:02:52]}  Kf8 {[%clk 0:02:13]} 37. Kg3 {[%clk 0:02:52]}  Ke7 {[%clk 0:02:14]} 38. Kf4 {[%clk 0:02:53]}  Kd6 {[%clk 0:02:15]} 39. Ke4 {[%clk 0:02:53]}  Kc5 {[%clk 0:02:15]} 40. h4 {[%clk 0:02:50]}  Kb5 {[%clk 0:02:15]} 41. Ra1 {[%clk 0:02:51]}  a4 {[%clk 0:02:16]} 42. Rbb1 {[%clk 0:02:50]}  b3 {[%clk 0:02:16]} 43. h5 {[%clk 0:02:51]}  Kb4 {[%clk 0:02:16]} 44. h6 {[%clk 0:02:49]}  a3 {[%clk 0:02:17]} 45. Rd1 {[%clk 0:02:47]}  b2 {[%clk 0:02:17]} 46. Rd4+ {[%clk 0:02:47]}  Kb3 {[%clk 0:02:17]} 47. Rad1 {[%clk 0:02:48]}  Ka2 {[%clk 0:02:16]} 48. R4d2 {[%clk 0:02:48]}  Rh8 {[%clk 0:02:10]} 49. Rh1 {[%clk 0:02:45]}  Ra6 {[%clk 0:02:11]} 50. h7 {[%clk 0:02:44]}  Rg6 {[%clk 0:02:10]} 51. Rh3 {[%clk 0:02:38]}  Rg7 {[%clk 0:02:06]} 52. Rdd3 {[%clk 0:02:39]}  b1=Q {[%clk 0:02:06]} 53. Ke5 {[%clk 0:02:37]}  Qb5+ {[%clk 0:02:04]} 54. Kf6 {[%clk 0:02:38]}  Qg5# {[%clk 0:02:03]} 0-1


[Site "https://www.chess.com"]

[Event "Titled Tuesday Blitz May 30 Late 2023"]
[White "Shuvalov, Evgenij"]
[Black "Kourkoulos-Arditis, Stamatis"]
[WhiteFideId "4187237"]
[BlackFideId "4221990"]
[WhiteElo "2080"]
[BlackElo "2400"]
[Result "0-1"]
[Round "11"]
[TimeControl "180+2"]
[Date "2023.05.31"]
[WhiteClock "0:00:30"]
[BlackClock "0:01:21"]

1. d4 {[%clk 0:02:54]}  d6 {[%clk 0:02:58]} 2. Nf3 {[%clk 0:02:53]}  Nf6 {[%clk 0:02:58]} 3. c4 {[%clk 0:02:53]}  Nbd7 {[%clk 0:02:57]} 4. Nc3 {[%clk 0:02:53]}  c6 {[%clk 0:02:58]} 5. e4 {[%clk 0:02:53]}  e5 {[%clk 0:02:58]} 6. Be2 {[%clk 0:02:53]}  Be7 {[%clk 0:02:59]} 7. O-O {[%clk 0:02:53]}  O-O {[%clk 0:02:59]} 8. Re1 {[%clk 0:02:53]}  Qc7 {[%clk 0:03:00]} 9. Bf1 {[%clk 0:02:52]}  Re8 {[%clk 0:03:00]} 10. g3 {[%clk 0:02:53]}  Bf8 {[%clk 0:03:00]} 11. Bg2 {[%clk 0:02:53]}  a6 {[%clk 0:02:59]} 12. h3 {[%clk 0:02:51]}  b5 {[%clk 0:02:58]} 13. a3 {[%clk 0:02:51]}  Bb7 {[%clk 0:02:48]} 14. Be3 {[%clk 0:02:50]}  g6 {[%clk 0:02:43]} 15. Rc1 {[%clk 0:02:50]}  bxc4 {[%clk 0:02:31]} 16. dxe5 {[%clk 0:02:46]}  dxe5 {[%clk 0:02:28]} 17. Nd2 {[%clk 0:02:43]}  Nc5 {[%clk 0:02:24]} 18. Bxc5 {[%clk 0:02:33]}  Bxc5 {[%clk 0:02:24]} 19. Nxc4 {[%clk 0:02:33]}  a5 {[%clk 0:02:22]} 20. Qf3 {[%clk 0:02:16]}  Kg7 {[%clk 0:02:21]} 21. Ne3 {[%clk 0:02:10]}  Qe7 {[%clk 0:02:05]} 22. Na4 {[%clk 0:01:58]}  Bd4 {[%clk 0:02:05]} 23. Nc2 {[%clk 0:01:53]}  c5 {[%clk 0:02:05]} 24. Nb6 {[%clk 0:01:44]}  Rad8 {[%clk 0:01:59]} 25. Qb3 {[%clk 0:01:32]}  Rb8 {[%clk 0:01:44]} 26. Qa4 {[%clk 0:01:19]}  Bxe4 {[%clk 0:01:41]} 27. Bxe4 {[%clk 0:01:17]}  Rxb6 {[%clk 0:01:41]} 28. Bg2 {[%clk 0:01:13]}  Rxb2 {[%clk 0:01:38]} 29. Nxd4 {[%clk 0:01:13]}  cxd4 {[%clk 0:01:39]} 30. Qxa5 {[%clk 0:01:11]}  e4 {[%clk 0:01:35]} 31. g4 {[%clk 0:01:01]}  h6 {[%clk 0:01:25]} 32. h4 {[%clk 0:00:57]}  e3 {[%clk 0:01:24]} 33. fxe3 {[%clk 0:00:55]}  Rxg2+ {[%clk 0:01:24]} 34. Kxg2 {[%clk 0:00:50]}  Qe4+ {[%clk 0:01:25]} 35. Kg1 {[%clk 0:00:46]}  Qxg4+ {[%clk 0:01:24]} 36. Kh2 {[%clk 0:00:38]}  Qxh4+ {[%clk 0:01:24]} 37. Kg2 {[%clk 0:00:38]}  Qg4+ {[%clk 0:01:24]} 38. Kh2 {[%clk 0:00:38]}  dxe3 {[%clk 0:01:21]} 39. Qc3 {[%clk 0:00:32]}  Qh4+ {[%clk 0:01:21]} 40. Kg2 {[%clk 0:00:32]}  Qf2+ {[%clk 0:01:21]} 41. Kh1 {[%clk 0:00:30]}  Re4 {[%clk 0:01:21]} 0-1


[Site "https://www.chess.com"]

[Event "Titled Tuesday Blitz May 30 Late 2023"]
[White "Bryakin, Mikhail"]
[Black "Gubajdullin, Alexei"]
[WhiteFideId "4165314"]
[BlackFideId "4141202"]
[WhiteElo "2467"]
[BlackElo "2279"]
[Result "0-1"]
[Round "11"]
[TimeControl "180+2"]
[Date "2023.05.31"]
[WhiteClock "0:01:34"]
[BlackClock "0:00:30"]

1. f4 {[%clk 0:03:00]}  g6 {[%clk 0:02:58]} 2. Nf3 {[%clk 0:03:01]}  Bg7 {[%clk 0:02:58]} 3. d3 {[%clk 0:03:01]}  c5 {[%clk 0:02:54]} 4. g3 {[%clk 0:03:02]}  Nc6 {[%clk 0:02:53]} 5. Bg2 {[%clk 0:03:03]}  Nf6 {[%clk 0:02:53]} 6. O-O {[%clk 0:03:03]}  O-O {[%clk 0:02:53]} 7. e4 {[%clk 0:03:04]}  d6 {[%clk 0:02:53]} 8. c3 {[%clk 0:03:04]}  Bg4 {[%clk 0:02:53]} 9. h3 {[%clk 0:03:04]}  Bxf3 {[%clk 0:02:53]} 10. Qxf3 {[%clk 0:03:05]}  Nd7 {[%clk 0:02:52]} 11. Be3 {[%clk 0:03:05]}  Rc8 {[%clk 0:02:52]} 12. Nd2 {[%clk 0:03:05]}  b5 {[%clk 0:02:52]} 13. Rab1 {[%clk 0:03:01]}  b4 {[%clk 0:02:51]} 14. c4 {[%clk 0:03:00]}  Bd4 {[%clk 0:02:47]} 15. Kh2 {[%clk 0:03:00]}  Bxe3 {[%clk 0:02:46]} 16. Qxe3 {[%clk 0:03:01]}  Nd4 {[%clk 0:02:46]} 17. e5 {[%clk 0:02:59]}  dxe5 {[%clk 0:02:15]} 18. fxe5 {[%clk 0:02:58]}  Qc7 {[%clk 0:02:15]} 19. Nf3 {[%clk 0:02:48]}  Nxf3+ {[%clk 0:02:13]} 20. Qxf3 {[%clk 0:02:48]}  Nxe5 {[%clk 0:02:10]} 21. Qe3 {[%clk 0:02:48]}  Rcd8 {[%clk 0:02:01]} 22. Bd5 {[%clk 0:02:48]}  e6 {[%clk 0:01:59]} 23. Rbe1 {[%clk 0:02:48]}  exd5 {[%clk 0:01:58]} 24. Qxe5 {[%clk 0:02:48]}  Qxe5 {[%clk 0:01:57]} 25. Rxe5 {[%clk 0:02:49]}  dxc4 {[%clk 0:01:57]} 26. Rxc5 {[%clk 0:02:47]}  Rxd3 {[%clk 0:01:49]} 27. Rf2 {[%clk 0:02:47]}  c3 {[%clk 0:01:49]} 28. bxc3 {[%clk 0:02:48]}  bxc3 {[%clk 0:01:49]} 29. h4 {[%clk 0:02:45]}  Rfd8 {[%clk 0:01:46]} 30. Rc7 {[%clk 0:02:45]}  Rd2 {[%clk 0:01:42]} 31. Kg2 {[%clk 0:02:45]}  Rxf2+ {[%clk 0:01:37]} 32. Kxf2 {[%clk 0:02:46]}  Rd2+ {[%clk 0:01:37]} 33. Ke3 {[%clk 0:02:46]}  Rxa2 {[%clk 0:01:35]} 34. Rxc3 {[%clk 0:02:47]}  h5 {[%clk 0:01:35]} 35. Kf4 {[%clk 0:02:45]}  Kg7 {[%clk 0:01:34]} 36. Rc7 {[%clk 0:02:43]}  a5 {[%clk 0:01:34]} 37. Ra7 {[%clk 0:02:43]}  a4 {[%clk 0:01:34]} 38. Ra6 {[%clk 0:02:44]}  a3 {[%clk 0:01:33]} 39. Kf3 {[%clk 0:02:45]}  Ra1 {[%clk 0:01:32]} 40. Kg2 {[%clk 0:02:45]}  a2 {[%clk 0:01:21]} 41. Kh2 {[%clk 0:02:45]}  Kf8 {[%clk 0:01:20]} 42. Ra7 {[%clk 0:02:44]}  Ke8 {[%clk 0:01:18]} 43. Kg2 {[%clk 0:02:45]}  Kd8 {[%clk 0:01:18]} 44. Ra3 {[%clk 0:02:44]}  Ke7 {[%clk 0:01:18]} 45. Ra6 {[%clk 0:02:45]}  f5 {[%clk 0:01:14]} 46. Kh2 {[%clk 0:02:42]}  Kd7 {[%clk 0:01:11]} 47. Kg2 {[%clk 0:02:43]}  Kc7 {[%clk 0:01:11]} 48. Ra8 {[%clk 0:02:41]}  Kb6 {[%clk 0:01:09]} 49. Ra3 {[%clk 0:02:41]}  Kc5 {[%clk 0:01:09]} 50. Ra8 {[%clk 0:02:40]}  f4 {[%clk 0:01:07]} 51. gxf4 {[%clk 0:02:38]}  Kd4 {[%clk 0:01:07]} 52. Ra7 {[%clk 0:02:32]}  Ke4 {[%clk 0:01:06]} 53. Ra4+ {[%clk 0:02:27]}  Kf5 {[%clk 0:01:05]} 54. Kh2 {[%clk 0:02:22]}  Kg4 {[%clk 0:01:02]} 55. Kg2 {[%clk 0:02:22]}  Kf5 {[%clk 0:00:58]} 56. Kh2 {[%clk 0:02:22]}  Ke6 {[%clk 0:00:58]} 57. Ra5 {[%clk 0:02:19]}  Kd6 {[%clk 0:00:57]} 58. Kg2 {[%clk 0:02:20]}  Kc6 {[%clk 0:00:57]} 59. Kh2 {[%clk 0:02:17]}  Kb6 {[%clk 0:00:57]} 60. Ra8 {[%clk 0:02:16]}  Kc5 {[%clk 0:00:57]} 61. Kg2 {[%clk 0:02:15]}  Kd4 {[%clk 0:00:57]} 62. Ra3 {[%clk 0:02:10]}  Ke4 {[%clk 0:00:56]} 63. Ra4+ {[%clk 0:02:09]}  Ke3 {[%clk 0:00:56]} 64. Kh2 {[%clk 0:01:42]}  Rd1 {[%clk 0:00:49]} 65. Ra3+ {[%clk 0:01:42]}  Rd3 {[%clk 0:00:47]} 66. Ra4 {[%clk 0:01:39]}  Rd2+ {[%clk 0:00:39]} 67. Kg3 {[%clk 0:01:40]}  Rc2 {[%clk 0:00:32]} 68. Ra3+ {[%clk 0:01:33]}  Kd2 {[%clk 0:00:31]} 69. f5 {[%clk 0:01:34]}  Rc3+ {[%clk 0:00:30]} 0-1


[Site "https://www.chess.com"]

[Event "Titled Tuesday Blitz May 30 Late 2023"]
[White "Castaneda, Jhon David"]
[Black "Baidetskyi, Valentin"]
[WhiteFideId "4405048"]
[BlackFideId "14142317"]
[WhiteElo "2086"]
[BlackElo "2490"]
[Result "0-1"]
[Round "11"]
[TimeControl "180+2"]
[Date "2023.05.31"]
[WhiteClock "0:02:21"]
[BlackClock "0:01:49"]

1. d4 {[%clk 0:02:59]}  Nf6 {[%clk 0:02:59]} 2. Nf3 {[%clk 0:03:00]}  g6 {[%clk 0:02:59]} 3. c4 {[%clk 0:03:00]}  Bg7 {[%clk 0:03:00]} 4. Nc3 {[%clk 0:02:59]}  O-O {[%clk 0:03:00]} 5. e4 {[%clk 0:02:59]}  d6 {[%clk 0:03:01]} 6. Be2 {[%clk 0:02:59]}  Na6 {[%clk 0:03:01]} 7. Be3 {[%clk 0:02:59]}  e5 {[%clk 0:03:00]} 8. O-O {[%clk 0:03:00]}  Qe7 {[%clk 0:02:59]} 9. d5 {[%clk 0:02:56]}  Ng4 {[%clk 0:02:55]} 10. Bg5 {[%clk 0:02:55]}  f6 {[%clk 0:02:53]} 11. Bh4 {[%clk 0:02:56]}  Nh6 {[%clk 0:02:52]} 12. Nd2 {[%clk 0:02:55]}  g5 {[%clk 0:02:46]} 13. Bg3 {[%clk 0:02:55]}  f5 {[%clk 0:02:47]} 14. exf5 {[%clk 0:02:53]}  Nxf5 {[%clk 0:02:48]} 15. Nde4 {[%clk 0:02:53]}  b6 {[%clk 0:02:40]} 16. a3 {[%clk 0:02:52]}  Nc5 {[%clk 0:02:40]} 17. b4 {[%clk 0:02:51]}  Nxe4 {[%clk 0:02:40]} 18. Nxe4 {[%clk 0:02:51]}  a5 {[%clk 0:02:35]} 19. Bg4 {[%clk 0:02:47]}  axb4 {[%clk 0:02:26]} 20. axb4 {[%clk 0:02:31]}  Rxa1 {[%clk 0:02:26]} 21. Qxa1 {[%clk 0:02:31]}  Nxg3 {[%clk 0:02:27]} 22. Bxc8 {[%clk 0:02:26]}  Nxe4 {[%clk 0:02:02]} 23. Be6+ {[%clk 0:02:25]}  Kh8 {[%clk 0:02:03]} 24. f3 {[%clk 0:02:22]}  Nd2 {[%clk 0:01:49]} 25. Rc1 {[%clk 0:02:21]}  Nb3 {[%clk 0:01:49]} 0-1


[Site "https://www.chess.com"]